bitfinex/quotes_BTCUSD_20241202
["timestamp","ask_amount","ask_price","bid_price","bid_amount"]
[1733155266747,0.2073908,97249.0,97232.0,0.205692]
[1733155266979,0.2073908,97249.0,97231.0,0.0805]
[1733155266980,0.0017318,97249.0,97237.0,0.205681]
[1733155267237,0.205659,97248.0,97233.0,0.20751117]
[1733155268165,0.0017318,97249.0,97237.0,0.205682]
[1733155268400,0.0017318,97249.0,97234.0,0.205689]
[1733155268652,0.205659,97248.0,97234.0,0.205689]
[1733155268899,0.205667,97245.0,97233.0,0.003]
[1733155269115,0.205667,97245.0,97233.0,0.004]
[1733155269348,0.205668,97244.0,97233.0,0.004]
[1733155269585,0.205668,97244.0,97232.0,0.205693]
[1733155269819,0.205668,97244.0,97234.0,0.003]
[1733155270515,0.205674,97242.0,97234.0,0.003]
[1733155270730,0.411323,97247.0,97234.0,0.003]
[1733155270986,0.205661,97247.0,97234.0,0.003]
[1733155271235,0.0017318,97249.0,97235.0,0.205687]
[1733155271456,0.0017318,97249.0,97236.0,0.10284521]
[1733155271698,0.0017318,97249.0,97247.0,0.20566]
[1733155271939,0.0017318,97249.0,97238.0,0.20568]
[1733155272151,0.00145376,97249.0,97238.0,0.20568]
[1733155272368,0.00117078,97249.0,97237.0,0.0464]
[1733155272573,0.00117078,97249.0,97238.0,0.00181997]
[1733155272847,0.00117078,97249.0,97237.0,0.14924521]
[1733155272848,0.00117078,97249.0,97242.0,0.20567]
[1733155273094,0.00117078,97249.0,97247.0,0.005]
[1733155274286,0.00117078,97249.0,97239.0,0.205677]
[1733155274516,0.00117078,97249.0,97246.0,0.205661]
[1733155274765,0.00117078,97249.0,97248.0,0.205659]
[1733155274985,0.00117078,97249.0,97248.0,0.35892399]
[1733155275205,0.00117078,97249.0,97248.0,0.35710421]
[1733155275427,0.00077078,97249.0,97248.0,0.35710421]
[1733155276135,0.00077078,97249.0,97248.0,0.36610421]
[1733155276371,0.00077078,97249.0,97248.0,0.37310421]
[1733155277099,0.00077078,97249.0,97248.0,0.0646]
[1733155277313,0.00077078,97249.0,97248.0,0.016]
[1733155277756,0.16831394,97249.0,97248.0,0.016]
[1733155277970,0.15077078,97249.0,97248.0,0.016]
[1733155278211,0.16036668,97249.0,97248.0,0.016]
[1733155278428,0.15,97247.0,97224.0,0.0791]
[1733155278660,0.15077078,97249.0,97224.0,0.0791]
[1733155278661,0.15,97245.0,97224.0,0.0791]
[1733155278884,0.205696,97231.0,97220.0,0.0485]
[1733155279099,0.411392,97231.0,97220.0,0.0485]
[1733155280474,0.4286481,97231.0,97220.0,0.0485]
[1733155280702,0.0172561,97231.0,97220.0,0.0485]
[1733155280938,0.0172561,97231.0,97221.0,0.0018204]
[1733155281159,0.15,97241.0,97228.0,0.01004271]
[1733155281374,0.205691,97234.0,97228.0,0.01004271]
[1733155282034,0.205691,97234.0,97228.0,0.01604271]
[1733155282258,0.205676,97240.0,97228.0,0.01604271]
[1733155282259,0.205684,97237.0,97228.0,0.01604271]
[1733155282493,0.205698,97230.0,97228.0,0.00104271]
[1733155282783,0.205698,97230.0,97228.0,0.01004271]
[1733155282985,0.205691,97233.0,97228.0,0.01004271]
[1733155283210,0.205699,97230.0,97228.0,0.01004271]
[1733155283428,0.205699,97230.0,97228.0,0.01504271]
[1733155284125,0.25284521,97229.0,97228.0,0.01504271]
[1733155284373,0.25284521,97229.0,97228.0,0.00604271]
[1733155284374,0.26244215,97229.0,97228.0,0.00604271]
[1733155284623,0.26244215,97229.0,97228.0,0.01504271]
[1733155284838,0.27779765,97229.0,97228.0,0.01004271]
[1733155285283,0.27779765,97229.0,97228.0,0.00704271]
[1733155285497,0.26244215,97229.0,97228.0,0.00704271]
[1733155285713,0.27779871,97229.0,97228.0,0.00104271]
[1733155285928,0.26244215,97229.0,97228.0,0.00604271]
[1733155286170,0.27779874,97229.0,97228.0,0.00604271]
[1733155286421,0.29486513,97229.0,97228.0,0.00904271]
[1733155287772,0.29486513,97229.0,97228.0,0.00404271]
[1733155288071,0.17495938,97229.0,97228.0,0.00904271]
[1733155288285,0.00959976,97229.0,97228.0,0.00904271]
[1733155288506,0.205699,97229.0,97228.0,0.00904271]
[1733155288754,0.205699,97229.0,97228.0,0.00604271]
[1733155289213,0.21529737,97229.0,97228.0,0.00604271]
[1733155289456,0.21380337,97229.0,97228.0,0.00804271]
[1733155289709,0.00959837,97229.0,97228.0,0.00804271]
[1733155289927,0.00959837,97231.0,97228.0,0.00604271]
[1733155290354,0.205691,97234.0,97228.0,0.00604271]
[1733155290569,0.205693,97232.0,97228.0,0.00804271]
[1733155291021,0.205691,97233.0,97228.0,0.00304271]
[1733155291259,0.01678114,97234.0,97228.0,0.00304271]
[1733155291474,0.205691,97234.0,97228.0,0.00704271]
[1733155291720,0.00960134,97233.0,97228.0,0.00304271]
[1733155291948,0.00960134,97233.0,97228.0,0.00804271]
[1733155292183,0.411386,97232.0,97228.0,0.00104271]
[1733155292397,0.411386,97232.0,97228.0,0.00304271]
[1733155292615,0.411386,97232.0,97228.0,0.00804271]
[1733155292854,0.411386,97232.0,97228.0,0.00104271]
[1733155293296,0.01737014,97234.0,97228.0,0.00104271]
[1733155293297,0.01737014,97234.0,97228.0,0.00404271]
[1733155293298,0.00643244,97246.0,97229.0,0.205699]
[1733155293514,0.00960098,97245.0,97229.0,0.15224521]
[1733155293730,0.01732045,97246.0,97230.0,0.0018201]
[1733155293947,0.00960098,97248.0,97243.0,0.205668]
[1733155294170,0.01821974,97249.0,97243.0,0.205668]
[1733155294632,0.00077078,97249.0,97247.0,0.200661]
[1733155294635,0.00077078,97249.0,97248.0,0.1295]
[1733155295361,0.00077078,97249.0,97248.0,0.23416507]
[1733155295608,0.00077078,97249.0,97248.0,0.23234521]
[1733155296105,0.00077078,97249.0,97248.0,0.24134521]
[1733155296315,0.00077078,97249.0,97248.0,0.23234521]
[1733155296754,0.00077078,97249.0,97248.0,0.24134521]
[1733155297019,0.00077078,97249.0,97248.0,0.24734521]
[1733155298376,0.00077078,97249.0,97248.0,0.24134521]
[1733155298835,0.00077078,97249.0,97248.0,0.24834521]
[1733155299072,0.000866,97270.0,97269.0,0.205615]
[1733155299298,0.000866,97270.0,97269.0,0.43606021]
[1733155300423,0.00104288,97270.0,97269.0,0.44506021]
[1733155301132,0.0008664,97294.0,97281.0,0.280689]
[1733155301384,0.0008664,97294.0,97281.0,0.38353421]
[1733155301385,0.00145577,97282.0,97281.0,0.38353421]
[1733155302388,0.00145577,97282.0,97281.0,0.43333421]
[1733155302619,0.00145577,97282.0,97281.0,0.65065693]
[1733155302833,0.00145577,97282.0,97281.0,0.65965693]
[1733155303525,0.0008664,97294.0,97293.0,0.332064]
[1733155303737,0.0008664,97294.0,97293.0,0.43490921]
[1733155305330,0.0008664,97294.0,97293.0,0.0569]
[1733155305575,0.0008664,97294.0,97293.0,0.018]
[1733155306057,0.0008664,97294.0,97293.0,0.0176952]
[1733155306058,0.12671161,97294.0,97293.0,0.0176952]
[1733155306285,0.27671161,97294.0,97293.0,0.0176952]
[1733155306496,0.28625188,97294.0,97293.0,0.0176952]
[1733155306713,0.28625188,97294.0,97293.0,0.0086952]
[1733155306949,0.29657983,97294.0,97293.0,0.0086952]
[1733155307186,0.3118458,97294.0,97293.0,0.0086952]
[1733155307437,0.43151985,97294.0,97293.0,0.0086952]
[1733155307669,0.355587,97282.0,97281.0,0.00058937]
[1733155307908,0.49097248,97282.0,97281.0,0.00058937]
[1733155308148,0.50623845,97282.0,97281.0,0.00058937]
[1733155308401,0.50123845,97282.0,97281.0,0.00058937]
[1733155308616,0.47823845,97282.0,97281.0,0.00058937]
[1733155308866,0.37539324,97282.0,97281.0,0.00658937]
[1733155309080,0.350587,97282.0,97281.0,0.00658937]
[1733155311130,0.350587,97282.0,97281.0,0.00958937]
[1733155312509,0.36013167,97282.0,97281.0,0.00958937]
[1733155312959,0.36186387,97282.0,97281.0,0.00958937]
[1733155314145,0.46470908,97282.0,97281.0,0.00958937]
[1733155314363,0.46470908,97282.0,97237.0,0.08]
[1733155314364,0.205653,97251.0,97237.0,0.08]
[1733155314813,0.355657,97249.0,97228.0,0.0008658]
[1733155315025,0.45850221,97249.0,97228.0,0.0008658]
[1733155315254,0.49105339,97249.0,97228.0,0.0008658]
[1733155315684,0.49105713,97249.0,97248.0,0.00104278]
[1733155315934,0.49105713,97249.0,97248.0,0.00804278]
[1733155316642,0.50814198,97249.0,97248.0,0.01004278]
[1733155317105,0.50635161,97249.0,97248.0,0.01004278]
[1733155317325,0.50635784,97249.0,97248.0,0.01004278]
[1733155317598,0.50635809,97249.0,97248.0,0.01004278]
[1733155318230,0.49105713,97249.0,97248.0,0.00104278]
[1733155318444,0.50636131,97249.0,97248.0,0.00104278]
[1733155318710,0.50736131,97249.0,97248.0,0.01204278]
[1733155318911,0.48336131,97249.0,97248.0,0.00504278]
[1733155319144,0.01055492,97249.0,97248.0,0.01204278]
[1733155319374,0.01055492,97249.0,97248.0,0.00804278]
[1733155319596,0.01055492,97249.0,97248.0,0.00504278]
[1733155319597,0.00905492,97249.0,97248.0,0.00504278]
[1733155319813,0.15,97250.0,97248.0,0.00504278]
[1733155320069,0.001,97249.0,97248.0,0.00804278]
[1733155320293,0.355657,97249.0,97248.0,0.00104278]
[1733155320509,0.20534363,97249.0,97248.0,0.00104278]
[1733155321226,0.49643449,97282.0,97248.0,0.00104278]
[1733155321227,0.18315643,97280.0,97248.0,0.00104278]
[1733155321491,0.205615,97269.0,97249.0,0.205657]
[1733155321711,0.10284521,97273.0,97249.0,0.00181996]
[1733155321937,0.12020772,97273.0,97248.0,0.00504278]
[1733155322153,0.205637,97259.0,97248.0,0.01304278]
[1733155322375,0.205623,97265.0,97248.0,0.00504278]
[1733155322599,0.205586,97283.0,97248.0,0.00504278]
[1733155322600,0.00643138,97287.0,97249.0,0.10466514]
[1733155322822,0.0008664,97294.0,97277.0,0.205598]
[1733155323044,0.0008664,97294.0,97258.0,0.405637]
[1733155323045,0.205567,97292.0,97278.0,0.0798]
[1733155323260,0.01756127,97288.0,97278.0,0.285394]
[1733155323476,0.0008664,97294.0,97278.0,0.45401677]
[1733155323706,0.0008664,97294.0,97280.0,0.205592]
[1733155324010,0.0008664,97294.0,97281.0,0.00181921]
[1733155324454,0.0008664,97294.0,97281.0,0.10466442]
[1733155324911,0.0008664,97294.0,97292.0,0.205566]
[1733155325131,0.0008664,97294.0,97292.0,0.20738499]
[1733155325847,0.0008664,97294.0,97281.0,0.32076282]
[1733155325848,0.0008664,97294.0,97281.0,0.00958937]
[1733155326106,0.0008664,97294.0,97282.0,0.20740627]
[1733155326364,0.0008664,97294.0,97288.0,0.205573]
[1733155326622,0.0008664,97294.0,97292.0,0.214566]
[1733155326852,0.0008664,97294.0,97292.0,0.008]
[1733155328002,0.0008664,97294.0,97288.0,0.009]
[1733155329178,0.0008664,97294.0,97292.0,0.008]
[1733155329641,0.0008664,97294.0,97284.0,0.205582]
[1733155329875,0.0008664,97294.0,97292.0,0.009]
[1733155330350,0.0008664,97294.0,97292.0,0.01081902]
[1733155330571,0.0008664,97294.0,97292.0,0.00181902]
[1733155331001,0.0008664,97294.0,97288.0,0.008]
[1733155331235,0.0008664,97294.0,97289.0,0.411145]
[1733155331452,0.0008664,97294.0,97292.0,0.008]
[1733155331706,0.0008664,97294.0,97292.0,0.017]
[1733155331918,0.0008664,97294.0,97292.0,0.009]
[1733155332767,0.0008664,97294.0,97289.0,0.411144]
[1733155333249,0.0008664,97294.0,97292.0,0.008]
[1733155333900,0.0008664,97294.0,97292.0,0.017]
[1733155334384,0.0008664,97294.0,97292.0,0.009]
[1733155335481,0.0018322,97293.0,97292.0,0.017]
[1733155337504,0.01140178,97293.0,97292.0,0.017]
[1733155337953,0.03440178,97293.0,97292.0,0.017]
[1733155338670,0.03440178,97293.0,97281.0,0.00058937]
[1733155338671,0.28724699,97293.0,97281.0,0.00058937]
[1733155338892,0.378587,97282.0,97281.0,0.00058937]
[1733155339111,0.173,97281.0,97248.0,0.0008659]
[1733155339343,0.20565,97253.0,97248.0,0.0008659]
[1733155339575,0.205642,97257.0,97248.0,0.0008659]
[1733155339840,0.00957143,97256.0,97248.0,0.0008659]
[1733155340093,0.205625,97265.0,97251.0,0.205653]
[1733155340094,0.00957143,97263.0,97251.0,0.205653]
[1733155340314,0.29243021,97280.0,97252.0,0.10284521]
[1733155340315,0.00957143,97262.0,97252.0,0.10284521]
[1733155340562,0.205614,97270.0,97256.0,0.20564]
[1733155340780,0.00957143,97269.0,97253.0,0.20746868]
[1733155341036,0.20561,97272.0,97261.0,0.205631]
[1733155341271,0.20561,97272.0,97253.0,0.00181968]
[1733155341272,0.205598,97277.0,97264.0,0.205624]
[1733155341501,0.205602,97275.0,97264.0,0.205624]
[1733155342140,0.01688593,97277.0,97258.0,0.08]
[1733155342354,0.22248393,97277.0,97260.0,0.0464]
[1733155342603,0.355591,97281.0,97266.0,0.20562]
[1733155342841,0.00956765,97280.0,97261.0,0.00181961]
[1733155343049,0.00956765,97280.0,97261.0,0.20563]
[1733155343257,0.01683281,97281.0,97260.0,0.0464]
[1733155343470,0.205609,97272.0,97261.0,0.205632]
[1733155344125,0.15058937,97282.0,97260.0,0.0464]
[1733155344371,0.15,97270.0,97245.0,0.0806]
[1733155344586,0.20563,97262.0,97261.0,0.005]
[1733155345252,0.20563,97262.0,97261.0,0.009]
[1733155345461,0.205617,97268.0,97261.0,0.009]
[1733155345695,0.25284521,97270.0,97261.0,0.005]
[1733155345696,0.00957297,97267.0,97261.0,0.005]
[1733155345909,0.20562,97267.0,97249.0,0.205657]
[1733155346193,0.001,97262.0,97261.0,0.006]
[1733155346403,0.001,97262.0,97261.0,0.014]
[1733155346653,0.001,97262.0,97261.0,0.211632]
[1733155346885,0.001,97262.0,97261.0,0.220632]
[1733155347093,0.001,97262.0,97261.0,0.211632]
[1733155347558,0.0095767,97274.0,97261.0,0.0098658]
[1733155347769,0.20563,97262.0,97261.0,0.0148658]
[1733155348655,0.21521532,97262.0,97261.0,0.0148658]
[1733155348865,0.20563,97262.0,97261.0,0.0098658]
[1733155349082,0.21521557,97262.0,97261.0,0.0098658]
[1733155349313,0.21621557,97262.0,97261.0,0.0168658]
[1733155350208,0.55634036,97262.0,97261.0,0.0168658]
[1733155350424,0.57168362,97262.0,97261.0,0.0168658]
[1733155350871,0.57068362,97262.0,97261.0,0.0008658]
[1733155351093,0.57168362,97262.0,97261.0,0.0068658]
[1733155351348,0.57168362,97262.0,97261.0,0.0108658]
[1733155351349,0.50740404,97262.0,97261.0,0.0108658]
[1733155351803,0.52336521,97262.0,97261.0,0.0068658]
[1733155352023,0.50740404,97262.0,97261.0,0.0108658]
[1733155352246,0.50640404,97262.0,97261.0,0.0048658]
[1733155352950,0.48340404,97262.0,97261.0,0.0078658]
[1733155353182,0.48340404,97262.0,97261.0,0.0008658]
[1733155353403,0.48340404,97262.0,97261.0,0.0028658]
[1733155353620,0.46806078,97262.0,97261.0,0.0028658]
[1733155353883,0.00958557,97262.0,97261.0,0.0028658]
[1733155354097,0.205628,97263.0,97261.0,0.0028658]
[1733155354774,0.00957946,97262.0,97261.0,0.0028658]
[1733155355005,0.00957946,97262.0,97261.0,0.0038658]
[1733155355273,0.205619,97267.0,97261.0,0.0038658]
[1733155355274,0.205623,97265.0,97261.0,0.0038658]
[1733155355476,0.205628,97263.0,97261.0,0.0008658]
[1733155355810,0.15,97262.0,97261.0,0.0118658]
[1733155356288,0.15,97262.0,97261.0,0.0048658]
[1733155356505,0.15,97262.0,97261.0,0.0138658]
[1733155356718,0.15958196,97262.0,97261.0,0.0138658]
[1733155356935,0.15958196,97262.0,97261.0,0.0008658]
[1733155357170,0.15958196,97262.0,97261.0,0.0088658]
[1733155357400,0.15958196,97262.0,97261.0,0.0138658]
[1733155357835,0.15,97262.0,97261.0,0.0088658]
[1733155358297,0.173,97262.0,97261.0,0.0138658]
[1733155358537,0.18258395,97262.0,97261.0,0.0138658]
[1733155358777,0.19791855,97262.0,97261.0,0.0088658]
[1733155359007,0.19791855,97262.0,97261.0,0.0048658]
[1733155359445,0.19791992,97262.0,97261.0,0.0128658]
[1733155359627,0.19791992,97262.0,97261.0,0.0048658]
[1733155359879,0.19791992,97262.0,97261.0,0.0128658]
[1733155360110,0.30076513,97262.0,97261.0,0.0128658]
[1733155360433,0.30076513,97262.0,97261.0,0.0008658]
[1733155360434,0.38266513,97262.0,97261.0,0.0008658]
[1733155360603,0.38266513,97262.0,97261.0,0.0038658]
[1733155360828,0.38266513,97262.0,97261.0,0.00276607]
[1733155361065,0.355657,97249.0,97248.0,0.0008659]
[1733155361288,0.49108679,97249.0,97248.0,0.0008659]
[1733155361514,0.50642213,97249.0,97248.0,0.0008659]
[1733155361731,0.59819374,97249.0,97248.0,0.0008659]
[1733155361946,0.79819374,97249.0,97248.0,0.0008659]
[1733155362178,1.27051707,97249.0,97248.0,0.0008659]
[1733155362388,1.20427307,97249.0,97248.0,0.00804278]
[1733155362603,1.20427307,97249.0,97248.0,0.00104278]
[1733155362604,1.00462507,97249.0,97248.0,0.00104278]
[1733155363034,1.44265207,97249.0,97248.0,0.00404278]
[1733155363249,1.42595507,97249.0,97248.0,0.00404278]
[1733155363474,1.35589722,97249.0,97248.0,0.00404278]
[1733155363709,1.30664722,97249.0,97248.0,0.00404278]
[1733155363927,1.18959922,97249.0,97248.0,0.00404278]
[1733155364379,1.18939359,97249.0,97248.0,0.00604278]
[1733155364798,1.02134559,97249.0,97248.0,0.00604278]
[1733155365035,1.28968059,97249.0,97248.0,0.00404278]
[1733155365558,1.18583159,97249.0,97248.0,0.00404278]
[1733155365965,1.16890544,97249.0,97248.0,0.00104278]
[1733155366658,1.16890544,97249.0,97248.0,0.00051178]
[1733155368220,1.16890544,97249.0,97228.0,0.0008658]
[1733155368221,0.2,97230.0,97228.0,0.0008658]
[1733155368423,0.72244677,97230.0,97229.0,0.00747433]
[1733155368644,0.70646213,97230.0,97229.0,0.00747433]
[1733155369081,0.69687755,97230.0,97229.0,0.00715533]
[1733155369328,0.49113333,97230.0,97229.0,0.00715533]
[1733155369539,0.5224566,97230.0,97229.0,0.00715533]
[1733155369749,0.50647913,97230.0,97229.0,0.00715533]
[1733155369987,0.51722481,97230.0,97229.0,0.00715533]
[1733155370215,0.51722481,97230.0,97229.0,0.01115533]
[1733155371135,0.57796715,97230.0,97229.0,0.01315533]
[1733155371378,0.52373076,97230.0,97229.0,0.01315533]
[1733155371820,0.72373076,97230.0,97229.0,0.01315533]
[1733155372092,0.92373076,97230.0,97229.0,0.01315533]
[1733155372303,0.92373076,97230.0,97228.0,1.3e-07]
[1733155372304,0.573,97229.0,97228.0,1.3e-07]
[1733155372526,2.43807821,97229.0,97228.0,1.3e-07]
[1733155372760,0.85171359,97229.0,97228.0,1.3e-07]
[1733155373216,0.70078213,97229.0,97228.0,1.3e-07]
[1733155373885,0.50078213,97229.0,97228.0,1.3e-07]
[1733155374768,0.50078213,97229.0,97228.0,0.00100013]
[1733155375198,0.50078213,97229.0,97228.0,0.00024413]
[1733155375886,0.173,97220.0,97184.0,0.2066609]
[1733155376123,0.15,97208.0,97184.0,0.0008659]
[1733155376368,0.20576,97201.0,97184.0,0.0008659]
[1733155376598,0.00958083,97200.0,97184.0,0.00268692]
[1733155376823,0.00958083,97200.0,97190.0,0.205781]
[1733155377033,0.00958083,97201.0,97184.0,0.00268692]
[1733155377259,0.00958083,97201.0,97189.0,0.205784]
[1733155377468,0.00958083,97201.0,97190.0,0.205782]
[1733155377685,0.00958083,97201.0,97184.0,0.0008659]
[1733155377686,0.00958083,97202.0,97194.0,0.205773]
[1733155377939,0.15,97204.0,97184.0,0.0008659]
[1733155378189,0.00958083,97203.0,97185.0,0.22836607]
[1733155378397,0.00958083,97206.0,97201.0,0.205759]
[1733155378612,0.001,97208.0,97186.0,0.1237]
[1733155378613,0.15,97212.0,97199.0,0.205763]
[1733155378831,0.205745,97208.0,97191.0,0.411559]
[1733155379059,0.002,97202.0,97194.0,0.016]
[1733155379296,0.001,97202.0,97194.0,0.007]
[1733155379561,0.205745,97208.0,97201.0,0.009]
[1733155379562,0.001,97206.0,97201.0,0.009]
[1733155380208,0.001,97206.0,97186.0,0.32949]
[1733155380209,0.00958343,97210.0,97197.0,0.205767]
[1733155380417,0.0095837,97209.0,97197.0,0.205767]
[1733155380635,0.205738,97211.0,97192.0,0.205777]
[1733155380636,0.205746,97207.0,97192.0,0.205777]
[1733155381077,0.00017662,97215.0,97199.0,0.005]
[1733155381300,0.15,97213.0,97200.0,0.205761]
[1733155381528,0.15,97211.0,97195.0,0.20758981]
[1733155381743,0.00958312,97210.0,97201.0,0.0008661]
[1733155381958,0.001,97207.0,97201.0,0.0008661]
[1733155382390,0.20590762,97215.0,97201.0,0.0008661]
[1733155382391,0.00958312,97211.0,97201.0,0.0008661]
[1733155382622,0.00958376,97210.0,97201.0,0.0008661]
[1733155382856,0.411503,97205.0,97201.0,0.0008661]
[1733155383069,0.205754,97203.0,97201.0,0.0098661]
[1733155383288,0.28542922,97202.0,97201.0,0.0098661]
[1733155383565,0.28542922,97202.0,97201.0,0.0008661]
[1733155383772,1.01452652,97202.0,97201.0,1e-07]
[1733155383983,0.355769,97196.0,97195.0,0.005]
[1733155384203,0.205786,97188.0,97187.0,0.0091544]
[1733155384433,0.205784,97190.0,97187.0,0.0091544]
[1733155384681,0.36537001,97188.0,97187.0,0.0091544]
[1733155384921,0.48355252,97188.0,97187.0,0.0091544]
[1733155385159,0.50655252,97188.0,97187.0,0.0091544]
[1733155385394,0.81701053,97188.0,97187.0,0.0091544]
[1733155385830,0.81701053,97188.0,97187.0,0.0111544]
[1733155386051,0.59996102,97188.0,97187.0,0.0111544]
[1733155386259,0.80096102,97188.0,97187.0,0.0181544]
[1733155386492,0.87986102,97188.0,97187.0,0.0181544]
[1733155386980,0.78645252,97188.0,97187.0,0.0181544]
[1733155387448,0.78645252,97188.0,97187.0,0.0161544]
[1733155387917,0.78645252,97188.0,97187.0,0.0201544]
[1733155390465,1.59712752,97188.0,97187.0,4e-07]
[1733155390715,0.98645252,97188.0,97187.0,4e-07]
[1733155390937,0.778805,97179.0,97178.0,0.06611262]
[1733155391420,0.778805,97179.0,97155.0,0.09563398]
[1733155391421,0.6215,97177.0,97176.0,0.46775307]
[1733155391424,0.7029,97177.0,97176.0,0.46775307]
[1733155391659,0.83066652,97177.0,97176.0,0.44717207]
[1733155391912,2.31198952,97177.0,97176.0,0.36484807]
[1733155392136,2.54479652,97177.0,97176.0,0.36484807]
[1733155392360,2.64762798,97177.0,97176.0,0.36543584]
[1733155392571,2.38166552,97177.0,97176.0,0.36543584]
[1733155392811,2.38966552,97177.0,97176.0,0.28099137]
[1733155393030,2.38966552,97177.0,97176.0,0.26041037]
[1733155393670,2.38966552,97177.0,97176.0,0.2118687]
[1733155393901,2.38966552,97177.0,97176.0,0.1707067]
[1733155394136,0.4,97173.0,97155.0,0.09563398]
[1733155394378,0.573,97156.0,97155.0,0.09162148]
[1733155394588,2.44227252,97156.0,97155.0,0.09162148]
[1733155394809,2.24627252,97156.0,97155.0,0.09162148]
[1733155395284,1.93947552,97156.0,97155.0,0.09162148]
[1733155395504,0.48362052,97156.0,97155.0,0.09162148]
[1733155395718,0.70662052,97156.0,97155.0,0.09162148]
[1733155396182,1.23368752,97156.0,97155.0,0.09162148]
[1733155396441,1.43368752,97156.0,97155.0,0.09162148]
[1733155397076,1.43364335,97156.0,97155.0,0.09162148]
[1733155397292,1.44959023,97156.0,97155.0,0.09162148]
[1733155397511,1.43464335,97156.0,97155.0,0.09162148]
[1733155397725,1.53747481,97156.0,97155.0,0.09162148]
[1733155397941,1.55242169,97156.0,97155.0,0.09162148]
[1733155398203,1.53647481,97156.0,97155.0,0.09162148]
[1733155398422,1.55242169,97156.0,97155.0,0.09162148]
[1733155398634,1.53647481,97156.0,97155.0,0.09162148]
[1733155398894,1.34936335,97156.0,97155.0,0.09162148]
[1733155399571,1.36531023,97156.0,97155.0,0.09162148]
[1733155399784,1.34936335,97156.0,97155.0,0.09162148]
[1733155400248,1.16793935,97156.0,97155.0,0.09162148]
[1733155400461,1.16893935,97156.0,97155.0,0.09162148]
[1733155400920,0.90857635,97156.0,97155.0,0.09162148]
[1733155401391,0.50857635,97156.0,97155.0,0.09162148]
[1733155401603,0.33557635,97156.0,97155.0,0.09162148]
[1733155402055,0.32026734,97156.0,97155.0,0.09162148]
[1733155402292,0.31826734,97156.0,97155.0,0.09162148]
[1733155402516,0.31926734,97156.0,97155.0,0.09162148]
[1733155402750,0.31826734,97156.0,97155.0,0.09162148]
[1733155402971,0.58589408,97156.0,97155.0,0.09162148]
[1733155403184,1.43383109,97156.0,97155.0,0.09162148]
[1733155403407,2.66525895,97156.0,97155.0,0.09162148]
[1733155403634,1.25634459,97156.0,97155.0,0.09162148]
[1733155404080,1.25534459,97156.0,97155.0,0.09162148]
[1733155404291,1.25534459,97156.0,97155.0,0.05044948]
[1733155404523,1.25534459,97156.0,97155.0,4.8e-07]
[1733155404756,1.25534459,97156.0,97150.0,0.0008662]
[1733155404757,0.778865,97151.0,97150.0,6.8e-07]
[1733155404972,1.00939305,97151.0,97150.0,6.8e-07]
[1733155405888,0.778884,97142.0,97141.0,0.0538132]
[1733155406131,3.76796151,97142.0,97141.0,0.0538132]
[1733155406368,3.42263059,97142.0,97141.0,0.0538132]
[1733155406721,2.98045458,97142.0,97141.0,0.0538132]
[1733155406961,2.81731861,97142.0,97141.0,0.0538132]
[1733155407177,2.81731861,97142.0,97141.0,0.05398956]
[1733155407390,2.61034204,97142.0,97141.0,0.05398956]
[1733155407824,2.61434204,97142.0,97141.0,0.05398956]
[1733155408483,2.61034204,97142.0,97141.0,0.05398956]
[1733155408732,2.61734204,97142.0,97141.0,0.05398956]
[1733155408939,2.49981758,97142.0,97141.0,0.05398956]
[1733155409167,2.17773958,97142.0,97141.0,0.05398956]
[1733155409382,0.51359158,97142.0,97141.0,0.05398956]
[1733155409609,0.34059158,97142.0,97141.0,0.05398956]
[1733155409880,0.33029166,97142.0,97141.0,0.05398956]
[1733155410303,0.32529166,97142.0,97141.0,0.05398956]
[1733155410732,0.47829166,97142.0,97141.0,0.05398956]
[1733155410949,0.50959158,97142.0,97141.0,0.05398956]
[1733155411162,0.50659158,97142.0,97141.0,0.05398956]
[1733155411408,0.51359158,97142.0,97141.0,0.05398956]
[1733155411648,0.50659158,97142.0,97141.0,0.05398956]
[1733155411857,0.50759158,97142.0,97141.0,0.05398956]
[1733155412311,0.50659158,97142.0,97141.0,0.05398956]
[1733155413657,0.5794334,97142.0,97141.0,0.05398956]
[1733155413889,0.50659158,97142.0,97141.0,0.05398956]
[1733155414612,0.52253815,97142.0,97141.0,0.05398956]
[1733155414885,0.12770758,97142.0,97141.0,0.10058956]
[1733155415086,0.00956245,97142.0,97141.0,0.10058956]
[1733155415306,0.1354821,97142.0,97141.0,0.10058956]
[1733155415526,0.12770758,97142.0,97141.0,0.03398956]
[1733155415777,1.23756758,97142.0,97141.0,0.03398956]
[1733155415987,0.75767158,97142.0,97141.0,0.00178686]
[1733155416210,0.90767158,97142.0,97141.0,0.00178686]
[1733155416898,0.93067158,97142.0,97141.0,0.00178686]
[1733155417107,0.96576904,97142.0,97141.0,0.00178686]
[1733155417586,0.73568508,97142.0,97141.0,0.00178686]
[1733155417805,0.70470758,97142.0,97141.0,0.00178686]
[1733155418290,0.50370758,97142.0,97141.0,0.00178686]
[1733155418717,0.34070217,97142.0,97141.0,0.00265396]
[1733155418944,0.74243637,97142.0,97141.0,0.00265396]
[1733155419410,0.84526783,97142.0,97141.0,0.00265396]
[1733155419617,0.378901,97134.0,97131.0,0.000866]
[1733155419834,0.49704613,97134.0,97131.0,0.000866]
[1733155420041,0.50660858,97134.0,97131.0,0.000866]
[1733155420913,0.50760858,97134.0,97133.0,0.07578473]
[1733155421366,0.50860858,97134.0,97133.0,0.07578473]
[1733155421810,0.58222472,97134.0,97133.0,0.07578473]
[1733155422304,0.54064047,97134.0,97133.0,0.07578473]
[1733155423646,1.06808347,97134.0,97133.0,0.05178473]
[1733155423854,0.48560858,97134.0,97133.0,0.10058473]
[1733155425852,0.54071167,97134.0,97133.0,0.10058473]
[1733155426322,0.53971167,97134.0,97133.0,0.10058473]
[1733155426738,0.53971167,97134.0,97133.0,0.10158473]
[1733155427198,0.63262095,97134.0,97133.0,0.10058473]
[1733155427415,0.63262095,97134.0,97133.0,0.10158473]
[1733155428080,0.53871167,97134.0,97133.0,0.10258473]
[1733155428765,0.53871167,97134.0,97133.0,0.0930547]
[1733155428973,0.53871167,97134.0,97133.0,0.0018155]
[1733155429429,0.378932,97119.0,97118.0,0.0455]
[1733155429759,0.49133966,97119.0,97118.0,0.0455]
[1733155429861,0.50663958,97119.0,97118.0,0.0455]
[1733155430080,0.30070758,97119.0,97118.0,0.0455]
[1733155430318,0.30070758,97119.0,97103.0,0.0008662]
[1733155430319,0.0017344,97134.0,97103.0,0.0008662]
[1733155430534,0.15,97132.0,97116.0,0.1274]
[1733155430761,0.002,97119.0,97118.0,0.1334]
[1733155430971,0.002,97119.0,97118.0,0.006]